fUST/lending_fUST_20240426
["ID","MTS","AMOUNT","RATE_DAILY","PERIOD"]
[323616288,1714134643106,-153.0,0.000317,2]
[323616290,1714134643115,-588.9,0.00031775,3]
[323616292,1714134643124,-453.14549697,0.00031775,3]
[323616388,1714134901344,300.0,0.00014728,2]
[323616389,1714134903111,287.0,0.00016123,2]
[323616731,1714135838070,-1890.65321071,0.00026277,2]
[323616733,1714135838080,-186.19135314,0.00026278,2]
[323616735,1714135838090,-1575.6250749,0.00026278,2]
[323616737,1714135838101,-260.5,0.00026279,2]
[323616739,1714135838110,-308.61077636,0.0002628,2]
[323616741,1714135838119,-1993.01218447,0.0002628,2]
[323616963,1714135840214,-409.74702,0.0002628,2]
[323617169,1714135843167,-185.93774435,0.0002628,2]
[323617170,1714135843177,-309.65937468,0.00026284,7]
[323617171,1714135843187,-164.208692,0.00027397,2]
[323617172,1714135843196,-168.520313,0.00027532,2]
[323617173,1714135843206,-479.7542954,0.000306,7]
[323617174,1714135843218,-562.2852706,0.000306,7]
[323617175,1714135843228,-1000.0,0.000311,7]
[323617176,1714135843238,-91.5551276,0.000311,2]
[323617177,1714135843250,-61.4448724,0.000311,2]
[323617178,1714135843259,-153.0,0.000311,2]
[323617179,1714135843269,-171.92694236,0.000316,2]
[323617180,1714135843278,-572.42818524,0.000316,7]
[323617203,1714135846222,-427.57181476,0.000316,7]
[323617205,1714135846351,-35742.50659906,0.00031692,3]
[323617216,1714136765208,1001.66425077,0.00011,2]
[323617217,1714136765242,1622.75142528,0.00011,2]
[323617585,1714137038303,-549.72031836,0.00027336,2]
[323617587,1714137038313,-396.29745402,0.00027336,2]
[323617589,1714137038323,-597.02936604,0.00027337,2]
[323617591,1714137038332,-260.5,0.00027338,2]
[323617593,1714137038341,-2100.22968197,0.00027338,2]
[323617595,1714137038351,-186.19135314,0.00027339,2]
[323617597,1714137038360,-1575.6250749,0.00027339,2]
[323617599,1714137038370,-490.47916713,0.00027339,2]
[323617601,1714137038381,-1400.17404358,0.00027339,2]
[323617603,1714137038391,-216.846743,0.00027397,2]
[323617605,1714137038400,-165.036821,0.00027397,2]
[323617607,1714137038409,-1354.6128113,0.00027681,2]
[323617609,1714137038418,-2137.1707495,0.00027807,2]
[323617611,1714137038427,-168.520313,0.00028088,2]
[323617613,1714137038436,-611.9688737,0.00028144,2]
[323617615,1714137038445,-153.43131253,0.00031456,3]
[323617617,1714137038455,-831.88837564,0.0003146,3]
[323617621,1714137038483,-758.7616587,0.0003146,3]
[323617623,1714137038493,-1590.65003434,0.0003146,3]
[323617625,1714137038502,-1590.65003434,0.0003146,3]
[323617627,1714137038510,-171.92694236,0.000316,2]
[323617629,1714137038519,-33879.57627836,0.00031691,4]
[323617631,1714137038528,-150.0,0.000317,120]
[323617633,1714137038537,-237.7931955,0.000317,2]
[323617635,1714137038546,-66.0987771,0.000317,2]
[323617831,1714137040411,-86.9012229,0.000317,2]
[323617833,1714137040420,-153.0,0.000317,2]
[323617835,1714137040429,-153.0,0.000317,2]
[323617837,1714137040438,-3852.57,0.00031769,3]
[323617839,1714137040448,-623.86726037,0.00031773,4]
[323617841,1714137040457,-173.59195269,0.00031774,4]
[323617843,1714137040467,-156.290504,0.00031775,2]
[323617845,1714137040483,-1308.26009912,0.00031775,4]
[323617846,1714137040492,-6954.17072087,0.00031777,4]
[323617848,1714137040500,-151.0,0.00031777,2]
[323617850,1714137040509,-151.0,0.00031777,2]
[323617852,1714137040518,-151.0,0.00031777,2]
[323617854,1714137040527,-151.0,0.00031777,2]
[323617856,1714137040535,-151.0,0.00031777,2]
[323617858,1714137040545,-151.0,0.00031777,2]
[323617860,1714137040555,-151.0,0.00031777,2]
[323617862,1714137040563,-3744.44976546,0.00031778,7]
[323617864,1714137040572,-9761.15726285,0.00031779,14]
[323618174,1714137043450,-1206.4336295,0.00031769,3]
[323618267,1714137421415,300.0,0.00014728,2]
[323618268,1714137422082,420.0,0.00016201,2]
[323618269,1714137422760,432.0,0.00017821,2]
[323618322,1714138232437,-186.19135314,0.00027337,2]
[323618323,1714138232448,-597.02936604,0.00027337,2]
[323618324,1714138232458,-549.72031836,0.00027337,2]
[323618325,1714138232467,-155.77004861,0.00027338,2]
[323618326,1714138232488,-104.72995139,0.00027338,2]
[323618327,1714138232497,-151.31979861,0.00027338,2]
[323618390,1714138238586,-1424.30527629,0.00027338,2]
[323618392,1714138238596,-220.16525223,0.00027339,2]
[323618394,1714138238606,-1890.65321071,0.00027339,2]
[323618396,1714138238618,-165.036821,0.00027397,2]
[323618398,1714138238628,-164.208692,0.00027397,2]
[323618399,1714138238639,-1360.32498783,0.000312,5]
[323618402,1714138238648,-2755.00684924,0.00031458,4]
[323618404,1714138238658,-153.43131253,0.00031459,3]
[323618405,1714138238668,-10870.30189609,0.00031686,3]
[323618407,1714138238678,-6516.71799258,0.00031768,4]
[323618410,1714138238687,-1573.58,0.00031776,3]
[323618412,1714138238697,-703.90495369,0.00031777,4]
[323618414,1714138238708,-1265.65161633,0.00031778,4]
[323618415,1714138238718,-212.0994584,0.00031783,4]
[323618418,1714138238728,-979.9996588,0.00031783,4]
[323618420,1714138238738,-1678.96711435,0.00031783,4]
[323618422,1714138238747,-155.070259,0.00031783,4]
[323618424,1714138238757,-207.25896322,0.00031783,4]
[323618426,1714138238766,-1619.47311514,0.00031783,4]
[323618428,1714138238776,-364.439187,0.00031783,2]
[323618430,1714138238786,-364.439187,0.00031783,2]
[323618432,1714138238795,-623.86726037,0.00031785,4]
[323618434,1714138238804,-1872.22488273,0.00031786,7]
[323618436,1714138238814,-151.0,0.00031786,2]
[323618438,1714138238824,-151.0,0.00031786,2]
[323618440,1714138238833,-151.0,0.00031786,2]
[323618442,1714138238847,-364.439187,0.00031786,2]
[323618444,1714138238856,-364.439187,0.00031786,2]
[323618446,1714138238865,-151.0,0.00031786,2]
[323618448,1714138238874,-151.0,0.00031786,2]
[323618450,1714138238884,-258.110943,0.00031786,2]
[323618452,1714138238893,-151.0,0.00031786,2]
[323618454,1714138238902,-151.0,0.00031786,2]
[323618456,1714138238911,-151.0,0.00031786,2]
[323618458,1714138238922,-151.0,0.00031786,2]
[323618460,1714138238931,-151.0,0.00031786,2]
[323618462,1714138238940,-151.0,0.00031786,2]
[323618464,1714138238950,-151.0,0.00031786,2]
[323618466,1714138238958,-151.0,0.00031786,2]
[323618468,1714138238968,-43005.35185555,0.00031786,14]
[323618498,1714138239239,-12655.10680731,0.00031786,14]
[323618500,1714138239250,-465.9591285,0.00031786,14]
[323618503,1714138239261,-3717.89754324,0.00031786,14]
[323618760,1714138240629,-250.61461111,0.00031786,14]
[323618773,1714138240688,-2747.14,0.00031776,3]
[323618776,1714138240697,-390.97662995,0.00031786,14]
[323618779,1714138240708,-288.19333919,0.00031786,14]
[323619190,1714138243815,-1025.8805,0.00031786,14]
[323619192,1714138243827,-322.22913963,0.00031786,14]
[323619194,1714138243840,-2092.0,0.00031786,14]
[323619457,1714138246597,-250.16112705,0.00031785,4]
[323619459,1714138246607,-802.15077971,0.00031785,4]
[323619460,1714138246617,-13201.26086105,0.00031786,14]
[323619540,1714138465017,-67201.0,0.00031786,14]
[323619629,1714139439191,-260.5,0.00028482,2]
[323619631,1714139439207,-578.61375686,0.00028483,2]
[323619639,1714139439361,-18.41560918,0.00028483,2]
[323619641,1714139439376,-220.16525223,0.00028484,2]
[323619643,1714139439405,-186.19135314,0.00028485,2]
[323619645,1714139439425,-150.0,0.000285,30]
[323619647,1714139439445,-204.0,0.0003,30]
[323619649,1714139439462,-1267.28614934,0.0003157,3]
[323619652,1714139439517,-551.41378198,0.0003157,3]
[323619653,1714139439533,-2318.05447688,0.0003157,3]
[323619669,1714139439823,-1681.94552312,0.0003157,3]
[323619671,1714139439850,-4000.0,0.0003157,3]
[323619673,1714139439882,-2289.29,0.00031773,3]
[323619675,1714139439915,-4961.3723454,0.00031783,7]
[323619677,1714139439944,-12030.03747284,0.00031783,14]
[323619690,1714139440199,-333.95878176,0.00031783,14]
[323619775,1714139442091,-7253.47449962,0.00031783,14]
[323620411,1714139880702,300.0,0.00014728,2]
[323620448,1714140268214,200514.08488809,0.00022,4]
[323620449,1714140302211,300.0,0.00014728,2]
[323620496,1714140631845,-549.72031836,0.00026044,2]
[323620498,1714140631854,-1890.65321071,0.00026044,2]
[323620500,1714140631864,-1575.6250749,0.00026045,2]
[323620502,1714140631877,-597.02936604,0.00026045,2]
[323620504,1714140631886,-981.04311904,0.00026045,2]
[323620506,1714140631895,-1490.8786078,0.00026046,2]
[323620508,1714140631904,-260.5,0.00026047,2]
[323620510,1714140631912,-220.16525223,0.00026048,2]
[323620512,1714140631921,-1620.88006626,0.00026048,2]
[323620514,1714140631930,-157.13778344,0.00026049,2]
[323620516,1714140631939,-300.0,0.00026146,2]
[323620518,1714140631948,-505.560942,0.00026161,2]
[323620520,1714140631958,-249.77656402,0.00027063,2]
[323620522,1714140631967,-4147.07273233,0.00027165,2]
[323620524,1714140631976,-2934.12047615,0.00027253,2]
[323620526,1714140631985,-1057.20199727,0.00027254,2]
[323620528,1714140631994,-623.86726037,0.00027255,2]
[323620530,1714140632003,-5126.99187753,0.00027256,2]
[323620532,1714140632014,-3316.12617874,0.00027256,2]
[323620534,1714140632025,-1034.0194,0.00027256,2]
[323620615,1714140637981,-186.19135314,0.00026043,2]
[323620618,1714140637991,-806.38597687,0.00027256,2]
[323621037,1714141838173,-1000.96559999,0.00025554,2]
[323621039,1714141838186,-489.91300781,0.00025554,2]
[323621041,1714141838196,-260.5,0.00025554,2]
[323621043,1714141838205,-329.75435874,0.00025555,2]
[323621045,1714141838215,-154.87609912,0.00025556,2]
[323621047,1714141838224,-474.97592894,0.00025557,2]
[323621050,1714141838235,-260.5,0.00025557,2]
[323621054,1714141838245,-597.02936604,0.00025558,2]
[323621056,1714141838253,-391.73138776,0.00025558,2]
[323621267,1714141840498,-537.78571416,0.00025558,2]
[323621270,1714141840510,-961.13610879,0.00025558,2]
[323621272,1714141840520,-459.88228259,0.00025558,2]
[323621274,1714141840529,-154.87609912,0.00025558,2]
[323621276,1714141840537,-186.19135314,0.00025558,2]
[323621278,1714141840546,-212.14600576,0.00025558,2]
[323621280,1714141840558,-2454.42608852,0.00025559,2]
[323621282,1714141840567,-162.07976976,0.00025559,2]
[323621284,1714141840576,-1575.6250749,0.00025559,2]
[323621286,1714141840586,-560.44533,0.00025596,2]
[323621288,1714141840595,-676.34216511,0.00027156,2]
[323621290,1714141840604,-8325.53898782,0.00027251,2]
[323621292,1714141840615,-4734.85552195,0.00027251,2]
[323621542,1714141843122,-564.71160499,0.00025553,2]
[323621544,1714141843132,-1408.68144921,0.00027251,2]
[323621550,1714141843177,-12102.13445173,0.00027251,2]
[323621843,1714141846049,-690.25819172,0.00027251,2]
[323621849,1714141846107,-8394.85727339,0.00027251,2]
[323621851,1714141846117,-43248.20007647,0.00027256,2]
[323621853,1714141846128,-165.036821,0.00027397,2]
[323621855,1714141846138,-164.829788,0.00027397,2]
[323621857,1714141846147,-160.543618,0.00027397,2]
[323621859,1714141846158,-676.34216511,0.00028285,2]
[323621862,1714141846167,-676.34216511,0.00029414,2]
[323621864,1714141846176,-150.0,0.000295,30]
[323621866,1714141846186,-676.34216511,0.00030542,2]
[323621868,1714141846195,-160.543618,0.00030603,2]
[323621870,1714141846204,-1000.0,0.00031,31]
[323621872,1714141846214,-153.43131253,0.00031468,3]
[323621874,1714141846223,-3391.180781,0.00031505,30]
[323621876,1714141846233,-588.95,0.00031527,3]
[323621878,1714141846242,-2170.0,0.00031537,3]
[323621880,1714141846251,-2000.0,0.00031547,2]
[323621882,1714141846260,-196.3,0.00031557,3]
[323621884,1714141846269,-1808.33,0.00031557,3]
[323621886,1714141846278,-2000.0,0.00031567,2]
[323621887,1714141846287,-2000.0,0.0003157,2]
[323621900,1714141846414,-676.34216511,0.00031671,2]
[323621901,1714141846424,-44444.0,0.00031686,3]
[323621902,1714141846434,-206.12530534,0.000317,14]
[323621903,1714141846444,-550.17740511,0.00031771,4]
[323621904,1714141846454,-976.90623307,0.00031771,4]
[323621905,1714141846463,-1422.11192019,0.00031771,4]
[323621906,1714141846472,-155.05365173,0.00031771,4]
[323621907,1714141846481,-157.69768027,0.00031771,4]
[323621908,1714141846491,-155.11297992,0.00031771,4]
[323621909,1714141846501,-169.0242405,0.00031771,4]
[323621910,1714141846510,-185.94441437,0.00031771,4]
[323621911,1714141846519,-155.1251987,0.00031771,4]
[323621912,1714141846528,-154.98298826,0.00031771,4]
[323621913,1714141846538,-309.67484219,0.00031771,4]
[323621914,1714141846547,-1619.12766487,0.00031772,4]
[323621915,1714141846560,-500.0,0.00031778,2]
[323621916,1714141846570,-500.0,0.00031778,2]
[323621917,1714141846579,-500.0,0.00031778,2]
[323621918,1714141846588,-500.0,0.00031778,2]
[323621919,1714141846598,-500.0,0.00031778,2]
[323621920,1714141846607,-500.0,0.00031778,2]
[323621921,1714141846617,-353.02030236,0.00031778,2]
[323621922,1714141846627,-4423.11359008,0.00031779,7]
[323621923,1714141846636,-151.0,0.00031779,2]
[323621924,1714141846646,-151.0,0.00031779,2]
[323621925,1714141846655,-151.0,0.00031779,2]
[323621926,1714141846664,-151.0,0.00031779,2]
[323621927,1714141846674,-204.562444,0.00031779,2]
[323621928,1714141846683,-487.925573,0.00031779,2]
[323621929,1714141846693,-487.925573,0.00031779,2]
[323621930,1714141846702,-151.0,0.00031779,2]
[323621931,1714141846711,-151.0,0.00031779,2]
[323621932,1714141846720,-487.925573,0.00031779,2]
[323621933,1714141846729,-487.925573,0.00031779,2]
[323621934,1714141846738,-151.0,0.00031779,2]
[323621935,1714141846747,-151.0,0.00031779,2]
[323621936,1714141846761,-151.0,0.00031779,2]
[323621937,1714141846770,-154.372564,0.00031779,2]
[323621938,1714141846779,-27.39881352,0.00031779,2]
[323622080,1714142461129,300.0,0.00014728,2]
[323622081,1714142461756,420.0,0.00016201,2]
[323622085,1714142847151,-300.0,0.00026947,2]
[323622286,1714143038346,-280.222665,0.00026262,2]
[323622287,1714143038356,-186.19135314,0.00026843,2]
[323622288,1714143038365,-260.5,0.00026844,2]
[323622289,1714143038375,-1890.65321071,0.00026844,2]
[323622290,1714143038385,-154.86062544,0.00026845,2]
[323622291,1714143038395,-1575.6250749,0.00026846,2]
[323622292,1714143038404,-597.02936604,0.00026949,2]
[323622293,1714143038413,-19024.95253631,0.0002695,2]
[323622294,1714143038425,-5210.99383732,0.0002695,2]
[323622295,1714143038435,-386.5511313,0.00026951,2]
[323622296,1714143038445,-1422.29882528,0.00027155,2]
[323622297,1714143038454,-614.147617,0.00027168,2]
[323622298,1714143038463,-165.036821,0.00027397,2]
[323622299,1714143038474,-196.7086001,0.00027534,2]
[323622300,1714143038483,-3826.93792487,0.00028408,2]
[323622301,1714143038503,-1305.97412878,0.00028408,2]
[323622302,1714143038515,-992.56266001,0.00028408,2]
[323622617,1714143043325,-1661.1870795,0.00028408,2]
[323622620,1714143043337,-1804.323423,0.00028408,2]
[323622622,1714143043349,-3012.47132687,0.00028408,2]
[323622633,1714143043445,-9818.25,0.00028408,2]
[323624641,1714143065169,905.24857472,0.00012937,2]
[323624645,1714143065203,1718.23769724,0.00012937,2]
[323625684,1714143820000,-2211.55679504,0.00031759,7]
[323625685,1714143820028,-150.0,0.00032,60]
[323625686,1714143820052,-150.0,0.00034,60]
[323625687,1714143820077,-11682.76953799,0.0003498,14]
[323625688,1714143820101,-150.0,0.00036,60]
[323625689,1714143820124,-109094.96196262,0.00038,12]
[323625690,1714143820148,-163.0,0.00039,120]
[323625691,1714143820170,-1000.0,0.0004,7]
[323625692,1714143820194,-6000.0,0.0004,120]
[323625693,1714143820218,-6000.0,0.0004024,120]
[323625694,1714143820241,-6000.0,0.0004048,120]
[323625695,1714143820265,-6000.0,0.0004072,120]
[323625696,1714143820288,-6000.0,0.0004096,120]
[323625697,1714143820311,-263.04892522,0.00041,20]
[323625698,1714143820334,-999.0,0.00041095,10]
[323625699,1714143820357,-151.0,0.000412,7]
[323625700,1714143820379,-363.069247,0.000412,7]
[323625701,1714143820402,-363.069247,0.000412,7]
[323625702,1714143820424,-390.340458,0.000412,7]
[323625703,1714143820450,-390.340458,0.000412,7]
[323625704,1714143820472,-6000.0,0.000412,120]
[323625705,1714143820494,-151.0,0.0004144,7]
[323625706,1714143820516,-6000.0,0.0004144,120]
[323625707,1714143820543,-151.0,0.0004144,7]
[323625708,1714143820565,-151.0,0.0004144,7]
[323625709,1714143820590,-151.0,0.0004144,7]
[323625710,1714143820613,-151.0,0.0004168,7]
[323625711,1714143820636,-363.069247,0.0004168,7]
[323625712,1714143820659,-363.069247,0.0004168,7]
[323625713,1714143820682,-390.340458,0.0004168,7]
[323625714,1714143820705,-390.340458,0.0004168,7]
[323625715,1714143820728,-6000.0,0.0004168,120]
[323625716,1714143820750,-151.0,0.0004192,7]
[323625717,1714143820772,-6000.0,0.0004192,120]
[323625718,1714143820795,-151.0,0.0004192,7]
[323625719,1714143820817,-151.0,0.0004192,7]
[323625720,1714143820843,-151.0,0.0004216,7]
[323625721,1714143820867,-363.069247,0.0004216,7]
[323625722,1714143820890,-363.06924,0.0004216,7]
[323625723,1714143820913,-390.340458,0.0004216,7]
[323625724,1714143820936,-390.340458,0.0004216,7]
[323625725,1714143821073,-6000.0,0.0004216,120]
[323625726,1714143821098,-999.0,0.00042191,12]
[323625727,1714143821121,-6000.0,0.000424,120]
[323625728,1714143821144,-390.340458,0.0004264,7]
[323625729,1714143821167,-390.340464,0.0004264,7]
[323625730,1714143821191,-6000.0,0.0004264,120]
[323625731,1714143821215,-6000.0,0.0004288,120]
[323625732,1714143821238,-6000.0,0.0004312,120]
[323625733,1714143821262,-999.0,0.00043287,14]
[323625734,1714143821286,-6000.0,0.0004336,120]
[323625735,1714143821309,-6000.0,0.000436,120]
[323625736,1714143821335,-5445.17,0.0004384,120]
[323625737,1714143821358,-7926.78582705,0.00044,15]
[323625738,1714143821381,-478.9295661,0.00044,30]
[323625739,1714143821404,-154.8530187,0.0004434,10]
[323625740,1714143821428,-999.0,0.00044383,16]
[323625741,1714143821462,-20000.0,0.00044444,120]
[323625742,1714143821485,-404.84555796,0.00044998,9]
[323625743,1714143821509,-14000.0,0.00045,6]
[323625744,1714143821533,-603.3966034,0.00045391,7]
[323625745,1714143821557,-999.0,0.00045479,18]
[323625746,1714143821581,-76171.15994045,0.00046,90]
[323625747,1714143821604,-999.0,0.00046575,20]
[323625748,1714143821628,-16262.6656535,0.000467,120]
[323625749,1714143821650,-2079.93780776,0.000468,120]
[323625750,1714143821673,-155.91,0.0004687,35]
[323625751,1714143821698,-1056.0,0.0004687,35]
[323625752,1714143821721,-156.65,0.0004687,35]
[323625753,1714143821744,-150.5,0.0004688,35]
[323625754,1714143821768,-165.53,0.0004688,35]
[323625755,1714143821791,-1056.0,0.0004688,35]
[323625756,1714143821813,-150.5,0.0004688,35]
[323625757,1714143821837,-150.5,0.0004689,35]
[323625758,1714143821860,-1056.0,0.0004689,35]
[323625759,1714143821882,-150.5,0.0004689,35]
[323625760,1714143821905,-150.5,0.0004689,35]
[323625761,1714143821929,-154.97236896,0.000469,20]
[323625762,1714143821952,-999.0,0.00047671,22]
[323625763,1714143821976,-999.0,0.00048767,24]
[323625764,1714143821999,-6993.80298042,0.00049,120]
[323625765,1714143822022,-1688.0,0.000492,120]
[323625766,1714143822044,-1500.0,0.00049315,120]
[323625768,1714144010224,-154.84515485,0.0002738,2]
[323625769,1714144010249,-260.5,0.00027381,2]
[323625770,1714144010269,-186.19135314,0.00027381,2]
[323625771,1714144010290,-597.02936604,0.00027382,2]
[323625772,1714144010310,-7214.33337006,0.00027383,2]
[323625782,1714144200741,300.0,0.00014728,2]
[323625783,1714144201420,420.0,0.00016201,2]
[323625784,1714144202068,587.0,0.00017821,2]
[323625942,1714144238574,-823.0,0.00019603,2]
[323625944,1714144238584,-1152.0,0.00021563,2]
[323625947,1714144238598,-1613.0,0.0002372,2]
[323625948,1714144238608,-2258.0,0.00026092,2]
[323625951,1714144238618,-597.02936604,0.00027293,2]
[323625952,1714144238627,-186.19135314,0.00027294,2]
[323625954,1714144238641,-154.84515485,0.00027295,2]
[323625957,1714144238651,-169.27597088,0.00027296,2]
[323625959,1714144238662,-164.829788,0.00027397,2]
[323625961,1714144238672,-2438.2934569,0.00028666,2]
[323625963,1714144238681,-458.0,0.00028701,2]
[323625964,1714144238691,-280.222665,0.00028866,2]
[323625966,1714144238701,-339.92258371,0.00029889,4]
[323625969,1714144238711,-202.25072848,0.00029889,2]
[323625971,1714144238721,-392.6,0.0002989,3]
[323625973,1714144238730,-1506.95,0.0002989,3]
[323625975,1714144238739,-285.588933,0.00029898,2]
[323625977,1714144238751,-1916.43,0.00029898,2]
[323625979,1714144238768,-401.14940536,0.00029898,2]
[323625982,1714144238780,-5915.92254616,0.00029898,2]
[323625984,1714144238789,-155.02823141,0.00029898,2]
[323625986,1714144238798,-395.0,0.00029898,2]
[323625988,1714144238808,-7029.9454711,0.00029898,2]
[323625990,1714144238817,-158.84999811,0.00029899,2]
[323625992,1714144238827,-1105.77839752,0.000299,7]
[323625994,1714144238836,-8208.32451634,0.000299,4]
[323626182,1714144240692,-334.67780756,0.00019602,2]
[323626185,1714144240704,-438.89924525,0.00019602,2]
[323626474,1714144243583,-2612.43521073,0.00019602,2]
[323626476,1714144243596,-5800.46403336,0.000299,4]
[323626479,1714144243607,-8215.70332365,0.000299,4]
[323626483,1714144243645,-78000.0,0.000299,4]
[323626762,1714144246556,-181.035986,0.00027397,2]
[323626764,1714144246566,-139073.50007115,0.000299,4]
[323626766,1714144246578,-61517.1899115,0.000299,4]
[323626768,1714144246588,-4915.0,0.000299,2]
[323626770,1714144246602,-155.07206722,0.0003,30]
[323626772,1714144246612,-301.5416,0.00030287,30]
[323626774,1714144246622,-154.84515485,0.00030681,4]
[323626776,1714144246633,-154.84515485,0.00030681,4]
[323626778,1714144246646,-154.84515485,0.00030681,4]
[323626780,1714144246656,-1360.32498783,0.00031,3]
[323626782,1714144246666,-303.8919726,0.00031078,2]
[323626784,1714144246676,-600.0,0.000313,2]
[323626786,1714144246686,-10117.73316479,0.00031758,4]
[323626788,1714144246696,-13264.71083151,0.00031761,3]
[323630703,1714145160865,300.0,0.00014728,2]
[323630740,1714145432669,-386.01217285,0.00018886,2]
[323630743,1714145432680,-86.22413588,0.00018886,2]
[323630745,1714145432689,-597.02936604,0.00018887,2]
[323630747,1714145432699,-158.79873753,0.00018887,2]
[323630749,1714145432708,-154.86062544,0.00018888,2]
[323630751,1714145432717,-1798.58584399,0.000189,2]
[323630868,1714145438782,-962.61,0.000189,2]
[323631067,1714145440797,-529.87083161,0.000189,2]
[323631069,1714145440808,-558.62916839,0.000239,2]
[323631074,1714145440855,-322.51,0.000239,2]
[323631077,1714145440867,-2409.92750721,0.000239,2]
[323631079,1714145440877,-68.16346078,0.000289,2]
[323631337,1714145443777,-3222.90321482,0.000289,2]
[323631340,1714145443787,-250.0,0.00030252,2]
[323631343,1714145443797,-167.887719,0.00031507,2]
[323631345,1714145443806,-167.887719,0.00031507,16]
[323631347,1714145443815,-167.887719,0.00031507,31]
[323631349,1714145443824,-167.887719,0.00031507,46]
[323631351,1714145443832,-167.887719,0.00031507,61]
[323631353,1714145443844,-167.887719,0.00031507,75]
[323631355,1714145443853,-167.887719,0.00031507,90]
[323631357,1714145443861,-167.887719,0.00031507,105]
[323631359,1714145443870,-167.887719,0.00031507,120]
[323631361,1714145443879,-276.59559406,0.0003176,4]
[323631363,1714145443888,-1200.26550321,0.00031777,4]
[323631365,1714145443896,-593.48681682,0.00031777,4]
[323631367,1714145443905,-211.93980355,0.00031777,4]
[323631368,1714145443914,-1025.23747117,0.00031777,4]
[323631370,1714145443923,-162.32899898,0.00031777,4]
[323631371,1714145443932,-154.92021904,0.00031778,4]
[323631372,1714145443940,-244.29550226,0.00031778,4]
[323631373,1714145443949,-676.93603125,0.00031778,4]
[323631374,1714145443957,-329.55462983,0.00031778,4]
[323631375,1714145443966,-207.25896322,0.00031781,4]
[323631376,1714145443975,-703.90495369,0.00031781,4]
[323631377,1714145443984,-1678.96711435,0.00031781,4]
[323631378,1714145443992,-1033.45363935,0.00031781,4]
[323631664,1714145446792,-232.19797698,0.00031781,4]
[323631666,1714145446802,-155.070259,0.00031781,4]
[323631668,1714145446811,-155.04295139,0.00031781,4]
[323631670,1714145446820,-92.74309694,0.00031782,2]
[323636670,1714146463765,3482.01842613,0.000266,120]
[323636730,1714146632086,-158.79873753,0.00025846,2]
[323636731,1714146632096,-91.20126247,0.00025846,2]
[323637307,1714146638005,-678.23749148,0.00025845,2]
[323637309,1714146638015,-102.47224956,0.00025846,2]
[323637311,1714146638025,-308.61077636,0.00025847,2]
[323637313,1714146638035,-928.07428214,0.00025847,2]
[323637315,1714146638046,-597.02936604,0.00025848,2]
[323637317,1714146638057,-154.87609912,0.00025848,2]
[323637319,1714146638067,-526.55247866,0.00025849,2]
[323637321,1714146638076,-472.23630873,0.0002585,2]
[323637323,1714146638086,-154.87609912,0.0002585,2]
[323637325,1714146638097,-7869.70150571,0.00025853,2]
[323637327,1714146638107,-931.4354149,0.00025864,2]
[323637329,1714146638116,-160.6889326,0.00026417,2]
[323637331,1714146638126,-186.6854596,0.00026432,2]
[323637333,1714146638136,-436.1237782,0.00026432,4]
[323637335,1714146638145,-182.08229437,0.000266,2]
[323637337,1714146638155,-14033.36038557,0.000266,2]
[323637339,1714146638167,-5158.09781139,0.000266,2]
[323637341,1714146638184,-732.6836974,0.00027297,3]
[323637343,1714146638194,-165.036821,0.00027397,2]
[323637345,1714146638204,-24900.0,0.00029458,2]
[323637347,1714146638213,-655.02582775,0.00030597,2]
[323637349,1714146638223,-608.781575,0.00030697,2]
[323637351,1714146638236,-655.02582772,0.00030831,2]
[323637353,1714146638246,-153.0,0.00031041,2]
[323637355,1714146638255,-153.0,0.00031041,2]
[323637357,1714146638265,-153.0,0.00031041,2]
[323637359,1714146638274,-655.02582772,0.00031065,2]
[323637361,1714146638284,-1046.49,0.00031157,3]
[323637363,1714146638294,-872.07,0.00031157,3]
[323637365,1714146638304,-726.73,0.00031157,3]